Cogmind - Beta 13 @@@ ROGUE MODE // 2024.07.04 @ 16:04:51 Player: Jazzer Result: Destroyed by Y-54 Guardian with Gatling Laser Performance ------------- Evolutions (3) 1500 Regions Visited (7) 1400 Robots Destroyed (80) 400 Value Destroyed (2372) 2372 Prototype IDs (29) 580 Alien Tech Used (0) 0 Bonus (577) 577 TOTAL SCORE: 6829 Bonus ------- High Alert Combat Kills 22 Follower Combat Kills 255 Aligned with FarCom 300 Cogmind --------- Core Integrity 0/700 Matter 300/300 Energy 100/100 System Corruption 10% Temperature Cool (6) Movement Core (400) Ox7 Location -7/Storage Parts ------- > --- POWER (1) -------- (None) > --- PROPULSION (5) --- (None) > --- UTILITY (4) ------ Large Storage Unit > --- WEAPON (3) ------- Powered Hammer > --- INVENTORY (15) --- Enhanced Nuclear Core Enhanced Nuclear Core Enhanced Nuclear Core Aluminum Leg Medium Storage Unit Large Storage Unit Advanced Weight Redist. System Structural Scanner Force Booster Guided Plasma Cannon Greatsword Peak State ------------ > --- POWER ------------ Enhanced Nuclear Core > --- PROPULSION ------- Aluminum Leg Carbon-fiber Leg Improved Carbon-fiber Leg Improved Carbon-fiber Leg Improved Titanium Leg > --- UTILITY ---------- Large Storage Unit Improved Melee Analysis Suite Actuator Array Improved Light Armor Plating > --- WEAPON ----------- Powered Hammer Powered Hammer Powered Hammer > --- INVENTORY -------- Enhanced Nuclear Core Enhanced Nuclear Core Enhanced Nuclear Core Aluminum Leg Aluminum Leg Aluminum Leg Medium Storage Unit Advanced Weight Redist. System Structural Scanner Force Booster Improved Light Armor Plating Guided Plasma Cannon Powered Hammer Greatsword [Rating: 49] Favorites ----------- Power Light Nuclear Core Engine Heavy Ion Engine Power Core Light Nuclear Core Propulsion Aluminum Leg Leg Aluminum Leg Utility Medium Storage Unit Device Structural Scanner Storage Medium Storage Unit Processor Improved Targeting Computer Protection Improved Light Armor Plating Weapon Powered Hammer Energy Gun Beamcaster Energy Cannon Guided Plasma Cannon Ballistic Gun Heavy Assault Rifle Impact Weapon Powered Hammer Build | -11 -10 -10 -10 -9 -8 -7 -7 ------- Run | Yrd Mat Min Exi Min Mat Fac Sto Slots Evolved 6 | . . . . . 4 2 . Power . | . . . . . . . . Propulsion 3 | . . . . . 2 1 . Utility 2 | . . . . . 1 1 . Weapon 1 | . . . . . 1 . . Parts Attached 71 | 7 11 4 . . 16 13 20 Power 7 | 1 1 . . . 1 1 3 Engine 4 | 1 . . . . 1 1 1 Core 3 | . 1 . . . . . 2 Reactor . | . . . . . . . . Propulsion 29 | 2 4 3 . . 5 6 9 Treads . | . . . . . . . . Leg 29 | 2 4 3 . . 5 6 9 Wheel . | . . . . . . . . Hover . | . . . . . . . . Flight . | . . . . . . . . Utility 24 | 2 4 . . . 5 6 7 Device 8 | 1 1 . . . 1 2 3 Storage 8 | 1 1 . . . 2 2 2 Processor 2 | . 1 . . . . 1 . Hackware . | . . . . . . . . Protection 6 | . 1 . . . 2 1 2 Artifact . | . . . . . . . . Weapon 11 | 2 2 1 . . 5 . 1 Energy Gun 1 | . . 1 . . . . . Energy Cannon 1 | . . . . . 1 . . Ballistic Gun 4 | 2 2 . . . . . . Ballistic Cannon . | . . . . . . . . Launcher . | . . . . . . . . Special Weapon . | . . . . . . . . Impact Weapon 5 | . . . . . 4 . 1 Slashing Weapon . | . . . . . . . . Piercing Weapon . | . . . . . . . . Special Melee Weapon . | . . . . . . . . Unidentified Prototypes 3 | . . . . . 1 . 2 Corrupted Parts 1 | . . . . . . 1 . System Corruption 8 | . . . . . . 8 . Parts Lost 21 | . 1 . . . . . 20 Power 1 | . . . . . . . 1 Propulsion 11 | . . . . . . . 11 Utility 6 | . 1 . . . . . 5 Weapon 3 | . . . . . . . 3 Highest Loss Streak 12 | . 1 . . . . . 12 To Critical Strikes . | . . . . . . . . Average Slot Usage (%) 98 | . 99 100 100 100 96 98 95 Engine 3 | . 7 . . . 6 7 . Core 6 | . 6 14 14 14 2 . 6 Leg 31 | . 28 28 28 28 35 38 34 Device 4 | . 4 . . . 1 10 6 Storage 11 | . 14 14 14 14 9 7 8 Processor 8 | . 8 14 14 14 7 2 6 Protection 3 | . . . . . 6 7 5 Energy Gun 3 | . . 8 14 14 . . . Ballistic Gun 11 | . 28 19 14 14 . . . Impact Weapon 11 | . . . . . 25 23 22 Naked Turns . | . . . . . . . . Heaviest Build 52 | 14 21 23 23 23 44 41 52 Greatest Support 81 | 20 20 20 20 20 45 71 81 Greatest Overweight (x) 12 | 1 1 1 1 1 1 . 12 Average Overweight (x) . | . . 1 1 1 . . . Largest Inventory Capacity 15 | 8 10 10 10 10 15 15 15 Average Capacity 10 | 7 8 10 10 10 11 11 15 Most Carried 15 | 6 9 10 10 10 11 13 15 Average Carried 10 | 4 7 9 9 10 9 10 14 Final Capacity 15 | 8 10 10 10 10 10 15 15 Final Carried 13 | 6 9 10 10 10 10 13 12 Class Distribution -------------------- 67% | Mutant 29% | Gladiator 3% | Scavenger-Mutant Dominant Class ---------------- Mutant | -10/Materials Mutant | -10/Mines Mutant | -10/Exiles Mutant | -9/Mines Mutant | -8/Materials Gladiator | -7/Factory Gladiator | -7/Storage Resources | -11 -10 -10 -10 -9 -8 -7 -7 ----------- Run | Yrd Mat Min Exi Min Mat Fac Sto Matter Collected 1176 | 294 277 103 . . 160 57 285 Remotely . | . . . . . . . . Salvage Created 3269 | 103 493 253 . . 584 195 1641 Parts 98 | 6 34 16 . . 10 7 25 Haulers Intercepted 7 | . 1 . . . 1 . 5 Recyclers Shooed 3 | . 1 . . . . . 2 Parts Field Recycled . | . . . . . . . . Retrieved Matter . | . . . . . . . . Parts Self-Destructed . | . . . . . . . . Prevented . | . . . . . . . . Kills | -11 -10 -10 -10 -9 -8 -7 -7 ------- Run | Yrd Mat Min Exi Min Mat Fac Sto Combat Hostiles Destroyed 57 | . 12 9 . . 11 4 21 Melee 14 | . . . . . 4 1 9 Guns 21 | . 12 9 . . . . . Cannons 1 | . . . . . 1 . . Classes Destroyed 14 | 2 4 . . . 1 2 5 Worker 4 | . . . . . . . 4 Builder 1 | . . . . . 1 . . Tunneler 2 | 1 . . . . 1 . . Hauler 7 | . 1 . . . 1 . 5 Recycler 6 | 1 . . . . 1 . 4 Operator 2 | . 2 . . . . . . Watcher 1 | . . . . . . . 1 Swarmer 11 | . 3 5 . . 3 . . Grunt 35 | . 9 4 . . 8 2 12 Brawler 1 | . . . . . . . 1 Protector 1 | . . . . . . . 1 Sentry 6 | . . . . . . 1 5 Hunter 2 | . . . . . . . 2 Programmer 1 | . . . . . . 1 . Best Kill Streak 11 | 2 3 3 . . 3 2 11 Combat Bots Only 7 | . 3 3 . . 3 2 7 Max Kills in Single Turn 2 | 1 2 2 . . 1 1 1 Gunslinging 1 | . 1 1 . . . . . Exploded . | . . . . . . . . Melee 1 | . . . . . 1 1 1 Uniques/NPCs Destroyed . | . . . . . . . . Combat | -11 -10 -10 -10 -9 -8 -7 -7 -------- Run | Yrd Mat Min Exi Min Mat Fac Sto Hostile Shots Fired 657 | . 44 19 . . 35 56 503 Missed 229 | . 13 7 . . 6 27 176 Damage Taken 4337 | . 363 124 . . 428 301 3121 Core 893 | . 88 21 . . 80 . 704 Absorbed by Shields . | . . . . . . . . Core Remaining (%) 80 | 100 . . . 56 85 . . Volleys Fired 63 | 6 37 17 . . 3 . . Largest 2 | 2 2 2 . . 1 . . Hottest 120 | 40 46 98 . . 120 . . Shots Fired 123 | 12 74 34 . . 3 . . Gun 120 | 12 74 34 . . . . . Cannon 3 | . . . . . 3 . . Launcher . | . . . . . . . . Special . | . . . . . . . . Kinetic 107 | 12 74 21 . . . . . Thermal 16 | . . 13 . . 3 . . Explosive . | . . . . . . . . Electromagnetic . | . . . . . . . . Robot Hit Streak 16 | 4 16 3 . . . . . Robot Miss Streak 3 | 2 3 3 . . . . . Penetration Max . | . . . . . . . . Secondary Targets 2 | . 1 1 . . . . . Max Gunslinging Chain 1 | . 1 1 . . . . . Shots Hit Robots 212 | 8 52 20 . . 23 11 98 Core Hits 60 | 4 27 11 . . 4 1 13 Critical Kills 5 | . . . . . . . 5 Critical Parts Destroyed 20 | . 1 . . . 4 4 11 Critical Strikes 26 | . 1 1 . . 4 4 16 Burn 1 | . . 1 . . . . . Destroy 1 | . 1 . . . . . . Smash 24 | . . . . . 4 4 16 Melee Attacks 190 | . . . . . 39 30 121 Impact 190 | . . . . . 39 30 121 Slashing . | . . . . . . . . Piercing . | . . . . . . . . Sneak Attacks 22 | . . . . . 4 . 18 Combat Hostiles . | . . . . . . . . Follow-up Attacks 38 | . . . . . 4 3 31 Damage Inflicted 7913 | 80 673 345 . . 1255 468 5092 Guns 1081 | 80 656 345 . . . . . Cannons 71 | . . . . . 71 . . Explosions . | . . . . . . . . Melee 6737 | . . . . . 1184 461 5092 Ramming 24 | . 17 . . . . 7 . Kinetic 953 | 80 656 217 . . . . . Thermal 199 | . . 128 . . 71 . . Explosive . | . . . . . . . . Electromagnetic . | . . . . . . . . Impact 6737 | . . . . . 1184 461 5092 Slashing . | . . . . . . . . Piercing . | . . . . . . . . Highest Corruption 10 | . . . . . . 10 10 Average Corruption 9 | . . . . . . 8 10 Corruption Purged . | . . . . . . . . Corruption Blocked . | . . . . . . . . Effects 57 | . . . . . . 27 30 Message Errors 14 | . . . . . . 5 9 Matter Fused 6 | . . . . . . 1 5 Heat Flow Errors 10 | . . . . . . 8 2 Energy Discharges 9 | . . . . . . 5 4 Parts Rejected 2 | . . . . . . 1 1 Parts Fused 1 | . . . . . . 1 . Data Loss (minor) 10 | . . . . . . 4 6 Data Loss (major) 3 | . . . . . . 2 1 Misdirections 2 | . . . . . . . 2 Overload Shots . | . . . . . . . . Overflow Damage 1663 | . . . . . 450 193 1020 Projectiles 23 | . . . . . . . 23 Explosions . | . . . . . . . . Melee 1640 | . . . . . 450 193 997 Knockbacks 24 | . . . . . 4 2 18 Impact 20 | . . . . . 4 2 14 Kinetic . | . . . . . . . . Secondary 4 | . . . . . . . 4 Self-Inflicted Damage . | . . . . . . . . Shots . | . . . . . . . . Rammed . | . . . . . . . . Targets Rammed 6 | . 5 . . . . 1 . Kicked 6 | . 5 . . . . 1 . Crushed . | . . . . . . . . Highest Temperature 272 | . 27 252 . . 222 272 209 Average Temperature 93 | . 8 100 . . 102 118 79 Received Heat Transfer 1710 | . 183 36 . . 225 111 1155 Siege Activations . | . . . . . . . . Robots Corrupted . | . . . . . . . . Combat Hostiles . | . . . . . . . . Parts Fried 43 | . . . . . 16 5 22 Impact Corruptions 66 | . . . . . 16 7 43 Robots Melted . | . . . . . . . . Combat Hostiles . | . . . . . . . . Parts Melted 1 | . . 1 . . . . . Heat Transferred 456 | . . 296 . . 160 . . Parts Sabotaged . | . . . . . . . . Parts Stolen . | . . . . . . . . Parts Stripped . | . . . . . . . . Power Chain Reactions . | . . . . . . . . Alert | -11 -10 -10 -10 -9 -8 -7 -7 ------- Run | Yrd Mat Min Exi Min Mat Fac Sto Peak Influence 427 | 10 172 170 . . 311 191 427 Initial 47 | . 6 47 . . . 45 22 Average 104 | 4 102 54 . . 119 89 181 Maximum Alert Level 2 | . . . . . 1 . 2 Low Security (%) 90 | 100 100 100 . 100 86 100 58 Level 1 8 | . . . . . 13 . 37 Level 2 . | . . . . . . . 4 Level 3 . | . . . . . . . . Level 4 . | . . . . . . . . Level 5 . | . . . . . . . . High Security . | . . . . . . . . Max Security . | . . . . . . . . Squads Dispatched 14 | . 2 . . 1 3 3 5 Investigation 5 | . 1 . . . 2 1 1 Extermination 3 | . . . . . . 2 1 Reinforcement 3 | . 1 . . . 1 . 1 Assault 3 | . . . . 1 . . 2 Garrison . | . . . . . . . . Intercept . | . . . . . . . . Searches Triggered . | . . . . . . . . Construction Impeded . | . . . . . . . . Haulers Reinforced 1 | . . . . . . . 1 Active Scanning Responses . | . . . . . . . . Cargo Convoy Interrupts . | . . . . . . . . Stealth | -11 -10 -10 -10 -9 -8 -7 -7 --------- Run | Yrd Mat Min Exi Min Mat Fac Sto Distress Signals 5 | . 3 . . . 1 . 1 Communications Jammed . | . . . . . . . . Distress Signals . | . . . . . . . . Times Spotted 89 | . 25 8 . . 18 5 33 Peak Tracking Total 6 | . 4 3 . . 4 2 6 Tactical Retreats 2 | . 1 . . . . . 1 Traps | -11 -10 -10 -10 -9 -8 -7 -7 ------- Run | Yrd Mat Min Exi Min Mat Fac Sto Traps Triggered 3 | . 1 . . . 1 1 . Indirectly . | . . . . . . . . Trap Hack Attempts . | . . . . . . . . Triggered . | . . . . . . . . Disarmed . | . . . . . . . . Reprogrammed . | . . . . . . . . Reused . | . . . . . . . . Traps Extracted . | . . . . . . . . Installed . | . . . . . . . . Triggered 1 | . . . . . . . 1 Machines | -11 -10 -10 -10 -9 -8 -7 -7 ---------- Run | Yrd Mat Min Exi Min Mat Fac Sto Machines Disabled 2 | . . . . . . . 2 Max in Single Turn 1 | . . . . . . . 1 Machines Repaired . | . . . . . . . . Machines Dismantled . | . . . . . . . . Machines Sabotaged . | . . . . . . . . Overloaded Fab Kills . | . . . . . . . . Hacking | -11 -10 -10 -10 -9 -8 -7 -7 --------- Run | Yrd Mat Min Exi Min Mat Fac Sto Machines Accessed 20 | . 6 . 2 . 5 5 2 Terminals 16 | . 6 . . . 4 5 1 Fabricators . | . . . . . . . . Repair Stations 1 | . . . . . 1 . . Recycling Units 1 | . . . . . . . 1 Scanalyzers . | . . . . . . . . Garrison Access . | . . . . . . . . Total Hacks 50 | . 15 . 2 . 13 14 6 Successful 20 | . 7 . 2 . 5 5 1 Failed 29 | . 7 . . . 8 9 5 Catastrophic 4 | . 2 . . . . 2 . Database Lockouts 1 | . 1 . . . . . . Manual 32 | . 13 . 2 . 6 11 . Terminals 44 | . 15 . . . 12 14 3 Fabricators . | . . . . . . . . Repair Stations 1 | . . . . . 1 . . Recycling Units 3 | . . . . . . . 3 Scanalyzers . | . . . . . . . . Garrison Access . | . . . . . . . . Terminal Hacks 13 | . 5 . 2 . 3 2 1 Record 1 | . . . 1 . . . . Robot Analysis 1 | . 1 . . . . . . Prototype ID Bank 1 | . 1 . . . . . . Open Door 1 | . . . . . . . 1 Branch Access Points 1 | . . . . . . 1 . Terminal Index 2 | . 1 . . . . 1 . Unreport Threat 1 | . . . . . 1 . . Locate Traps 4 | . 2 . . . 2 . . Derelict Proto ID Bank 1 | . . . 1 . . . . Fabricator Hacks . | . . . . . . . . Repair Station Hacks . | . . . . . . . . Recycling Unit Hacks . | . . . . . . . . Scanalyzer . | . . . . . . . . Garrison Access Hacks . | . . . . . . . . Unauthorized Hacks 7 | . 2 . . . 2 3 . Terminals 7 | . 2 . . . 2 3 . Assimilate 1 | . . . . . . 1 . Botnet 6 | . 2 . . . 2 2 . Fabricators . | . . . . . . . . Repair Stations . | . . . . . . . . Recycling Units . | . . . . . . . . Scanalyzers . | . . . . . . . . Garrison Access . | . . . . . . . . Data Cores Recovered 1 | . 1 . . . . . . Used . | . . . . . . . . Hacking Detections 18 | . 7 . . . 5 4 2 Full Trace Events 3 | . . . . . 1 1 1 Feedback Events 1 | . . . . . . 1 . Corruption 1 | . . . . . . 1 . Feedback Blocked . | . . . . . . . . Robot Schematics Acquired . | . . . . . . . . Robots Built . | . . . . . . . . Authchips . | . . . . . . . . Time . | . . . . . . . . Total Robot Build Rating . | . . . . . . . . Part Schematics Acquired . | . . . . . . . . Parts Built . | . . . . . . . . Authchips . | . . . . . . . . Time . | . . . . . . . . Total Part Build Rating . | . . . . . . . . Parts Repaired . | . . . . . . . . Time . | . . . . . . . . Parts Recycled . | . . . . . . . . Recycled Matter . | . . . . . . . . Retrieved Matter . | . . . . . . . . Retrieved Components . | . . . . . . . . Parts Scanalyzed . | . . . . . . . . Part Schematics Acquired . | . . . . . . . . Parts Damaged . | . . . . . . . . Bothacking | -11 -10 -10 -10 -9 -8 -7 -7 ------------ Run | Yrd Mat Min Exi Min Mat Fac Sto Used RIF Installer . | . . . . . . . . Robots Hacked . | . . . . . . . . Non-combat . | . . . . . . . . Combat . | . . . . . . . . Robot Hacks Applied . | . . . . . . . . Relay Couplers Released . | . . . . . . . . Fabnet Peak Effective % . | . . . . . . . . Robots Rewired . | . . . . . . . . Allies Hacked . | . . . . . . . . Hacks Repelled . | . . . . . . . . Allies | -11 -10 -10 -10 -9 -8 -7 -7 -------- Run | Yrd Mat Min Exi Min Mat Fac Sto Total Allies 6 | . . . . 3 . 1 2 Largest Group 3 | . . . . 3 3 1 3 Highest-Rated Group 88 | . . . . 73 73 26 88 Highest-Rated Ally 31 | . . . . 31 31 26 31 Total Orders 9 | . . . . . . . 9 STAY 5 | . . . . . . . 5 FOLLOW 4 | . . . . . . . 4 Ally Attacks 98 | . . . . . 53 . 45 Total Damage 1465 | . . . . . 776 . 689 Kills 9 | . . . . . 6 . 3 Allies Corrupted . | . . . . . . . . Allies Melted . | . . . . . . . . Intel | -11 -10 -10 -10 -9 -8 -7 -7 ------- Run | Yrd Mat Min Exi Min Mat Fac Sto Robot Analysis Total 1 | . 1 . . . . . . Derelict Logs Recovered 3 | . . 2 . 1 . . . Drone Launches . | . . . . . . . . Drone Recoveries . | . . . . . . . . Exploration | -11 -10 -10 -10 -9 -8 -7 -7 ------------- Run | Yrd Mat Min Exi Min Mat Fac Sto Turns Passed 5091 | 99 1169 1033 420 27 666 784 893 Spaces Moved 2982 | 52 756 504 221 14 414 579 442 Core 6 | 5 . . . . . . 1 Treads . | . . . . . . . . Legs 2976 | 47 756 504 221 14 414 579 441 Wheels . | . . . . . . . . Hover . | . . . . . . . . Flight . | . . . . . . . . Fastest Speed 50 | 50 120 190 190 190 120 120 120 Average Speed 140 | 126 129 190 190 190 123 120 123 Slowest Speed 650 | 190 190 190 190 190 190 120 650 Overloaded Moves . | . . . . . . . . Propulsion Burnouts . | . . . . . . . . Robots Hopped . | . . . . . . . . Cave-ins Triggered . | . . . . . . . . Exploration Rate (%) 45 | 4 97 97 61 7 41 23 37 Regions Visited 7 Branch Regions 4 Pre-discovered Areas 3 | . . 2 1 . . . . Known Exits Taken 1 | . . . . . . 1 . Unknown Exits Taken 6 | 1 1 1 1 1 1 . . Scrap Searched 1 | . . 1 . . . . . Spaces Dug 13 | . . . . . 4 7 2 Terrain Destroyed 13 | . . . . . 4 7 2 Melee 13 | . . . . . 4 7 2 Projectile . | . . . . . . . . AOE . | . . . . . . . . Terrain Rammed . | . . . . . . . . Walls Destroyed . | . . . . . . . . Machines Disabled . | . . . . . . . . Actions | -11 -10 -10 -10 -9 -8 -7 -7 --------- Run | Yrd Mat Min Exi Min Mat Fac Sto Total 3508 | 71 881 547 222 15 515 629 628 Wait 176 | 1 44 17 . 2 36 8 68 Move 2975 | 51 755 503 220 13 413 578 442 Hop . | . . . . . . . . Pick Up 37 | 6 11 2 1 . 7 3 7 Fast Attach 21 | 7 3 . . . 4 3 4 Attach 13 | . . . . . 3 1 9 Detach 5 | . . . . . 3 . 2 Swap 37 | . 8 4 . . 9 9 7 Drop 43 | . 18 4 1 . 9 5 6 Fire 63 | 6 37 17 . . 3 . . Melee 130 | . . . . . 28 19 83 Ram . | . . . . . . . . Kick 6 | . 5 . . . . 1 . Crush . | . . . . . . . . Escape Stasis 2 | . . . . . . 2 . Rewire . | . . . . . . . . Trap . | . . . . . . . . Miscellaneous . | . . . . . . . . Route ------- -11/Scrapyard -10/Materials (discovered 5 exits: [*Mat x3] / [*Min x2]) -10/Mines (discovered 3 exits: [*Mat x2] / *Exi) -10/Exiles -9/Mines -8/Materials (discovered 2 exits: *Fac x2) -7/Factory (discovered 3 exits: *Sto / Low x2) -7/Storage (discovered 1 exit: Rec) History --------- Turn | Location | Event 22 | -11/Scrapyard | Discovered new exit (range 16) 100 | -11/Scrapyard | Entered Materials 183 | -10/Materials | Discovered new exit (range 13) 263 | -10/Materials | Discovered new exit (range 4) 310 | -10/Materials | Build established: Mutant 360 | -10/Materials | Discovered new exit (range 12) 665 | -10/Materials | Central database locked down 803 | -10/Materials | Discovered new exit (range 10) 890 | -10/Materials | Discovered new exit (range 9) 1269 | -10/Materials | Entered Mines 1270 | -10/Mines | Learned location of Storage (-7) 1274 | -10/Mines | Met a Derelict bent on vengeance 1363 | -10/Mines | Learned 2 Materials zone layouts 1848 | -10/Mines | Discovered new exit (range 10) 2000 | -10/Mines | Discovered new exit (range 12) 2203 | -10/Mines | Deemed a non-threat by the Exiles lab entrance 2205 | -10/Mines | Discovered new exit (range 5) 2302 | -10/Mines | Entered Exiles 2348 | -10/Exiles | Met 8R-AWN 2382 | -10/Exiles | Met EX-HEX 2449 | -10/Exiles | Met EX-BIN 2477 | -10/Exiles | Aligned with FarCom system 2479 | -10/Exiles | Given EX-Vault access code 2523 | -10/Exiles | Opened EX-Vault 2533 | -10/Exiles | Found Gui. Plasma Cannon 2572 | -10/Exiles | Warned to stay clear of 0b10 Research branches 2623 | -10/Exiles | Met EX-DEC 2642 | -10/Exiles | Learned location of Zion (-6) 2707 | -10/Exiles | Discovered new exit (range 10) 2722 | -10/Exiles | Left Exiles lab with Gui. Plasma Cannon 2722 | -10/Exiles | Entered Mines 2722 | -9/Mines | Discovered new exit (range 13) 2723 | -9/Mines | Met a Derelict testing a Signal Generator 2749 | -9/Mines | Entered Materials 2749 | -8/Materials | Accompanied by 3 allies 2749 | -8/Materials | Evolved 4 slots: Propulsion x2, Utility x1, Weapon x1 2754 | -8/Materials | Led the pair of lost Derelicts to an unsafe place 2984 | -8/Materials | Discovered new exit (range 15) 3407 | -8/Materials | Discovered new exit (range 7) 3415 | -8/Materials | Entered Factory 3415 | -7/Factory | Evolved 2 slots: Propulsion x1, Utility x1 3837 | -7/Factory | System corruption reached 10% 3900 | -7/Factory | Build established: Gladiator 3978 | -7/Factory | Discovered new exit (range 11) 4095 | -7/Factory | Identified exit to Storage 4095 | -7/Factory | Identified exit to Lower Caves 4199 | -7/Factory | Entered Storage 4199 | -7/Storage | Accompanied by 1 ally 4200 | -7/Storage | Identified exit to Recycling 4241 | -7/Storage | Met a pair of Derelict thieves 4357 | -7/Storage | Lost 3 parts (2n1u) 4819 | -7/Storage | Destroyed 7 combat bots 4826 | -7/Storage | Lost 3 parts (2n1u) 5064 | -7/Storage | Core integrity fell below 50% 5086 | -7/Storage | Core integrity fell below 20% 5092 | -7/Storage | Destroyed by Y-54 Guardian with Gatling Laser Last Messages --------------- 05059_ Carbon-fiber Leg destroyed. 05063_ Imp. Titanium Leg destroyed. 05066_ Powered Hammer follow-up attack on Y-54 Guardian. 05066_ Y-54 Guardian suffers critical hit (Smash). 05066_ Destroyed Imp. Heat Sink. 05066_ Y-54 Guardian system corrupted by crushing effect. 05067_ Y-54 Guardian system terminally corrupted. 05067_ K-01 Serf collects debris. 05072_ K-01 Serf destroyed. 05073_ Imp. Light Armor Plating destroyed. 05073_ Actuator Array destroyed. 05074_ P-60 Hacker fails to hack Administrator 4a. 05074_ K-01 Serf collects debris. 05077_ Powered Hammer destroyed. 05080_ HC4GBK T2M4CAIW4PCQG 05080_ K-01 Serf collects debris. 05081_ Powered Hammer destroyed. 05082_ Administrator 4a reports 0b10 security level has lowered to 0. 05082_ Imp. Melee Analysis Suite destroyed. 05084_ K-01 Serf collects debris. Map ----- +----------------------------------------------------+ | ?????????????????????##* " # ##???????? | | ?????????????????????## #T## ##???????? | | ?????????????????????##* #### ##???????? | | ?????????????????????########## ##???????? | | ?????????????????????########## ##???????? | | ?????????????????????????????## ##???????? | | ??????????????????????????##### ##???????? | | ?????????????????????########## ##???????? | | ?????????????????????#######T## ##???????? | | ???#####?????????????##]]]] %+% ##???????? | | ???# ?????????????## # % ##???????? | | ???# ?????????????##[[[[ # ##???????? | | ??## """ ""???????########## ##???????? | | ???+ """ T??###############= ######???? | | ???# "???###############[ ########## | | ???# """ #???## #%% # # | | ???# """ #??### """ """ #% # # | | ???? """ #??###| """ """ # # """""" # | | ?????? ????## """ """ #% # " ! " # | | ?????###+######### # + !![=" # | | ?????# ##############+##### %%# """""" # | | ?????# % % % % %! r[%[% %%% + % # | | ?????# *% !] %[!% # # | | ?????# % ]%] !p%% % # # | | ?????# % ##############Y################## | | ???#####+#############=Y%@!= ############## | | ???# #????##""=*"*=% #####????????? | | ???# % #????##""%!""" #####????????? | | ???# ** #????##" """ """##????????? | | ???# ** #????##"" k % R"##????????? | | ???# * #????##"" """ """##????????? | | ???# #????#### """ #####????????? | | ???# #????#### """ ####????????? | | ???# #??????## ###??????????? | | ???######## ##??????#############??????????? | | ???????????##???????############???????????? | | ???????????????????????????????????????????? | | ???????????????????????????????????????????? | | ???????????????????????????????????????????? | | ???????????????????????????????????????????? | | ???????????????????????????????????????????? | | ???????????????????????????????????????????? | | ???????????????????????????????????????????? | | | | | | | | | | | | | | | +----------------------------------------------------+ Best States ------------- Heat Dissipation 35 Energy Generation 17 Energy Capacity 300 Matter Stores 300 Matter Capacity 300 Sight Range 16 Terrain Scan Density 10 Armor Coverage 300 Power Shielding 33 Evasion (%) 55 Targeting Accuracy 6 Melee Accuracy 6 Force Boost 20 Item Schematics ----------------- None Robot Schematics ------------------ None Fabricated ------------ Nothing Alien Tech Used ----------------- None Achievements -------------- None Challenges ------------ None Game ------ Seed PropulsionStormSaw Manual? 0 Play Time 00:55:06 Cumulative 309.0 hours Start 2024.07.04 @ 15:04:08 End 2024.07.04 @ 16:04:51 Sessions 1 Manual Loads 0 Difficulty Rogue Special Mode None Game No. 184 Rogue 184 Adventurer 0 Explorer 0 Win Type - Total 2 Types 2/0/0/0/0/0/0/0/0 Lore% 54 Gallery% 64 Achievement% 41 Wizard Run 0 Options --------- Layout 0 ASCII 0 Keyboard 1 Movement Numpad Keybinds 0 Fullscreen 2 Font 24/Smallcaps Map View 76x50 Zoom Use 0% Tactical HUD 1 Map Filters NONE Filters NONE Steam 1 RUN: 210f9303-63ba-44f6-beb1-e15aee1a3d94